lending/lending_fUSD_20260204
["ID","MTS","AMOUNT","RATE_DAILY","PERIOD"]
[404498291,1770222642480,-1045.87,0.00012268,2]
[404498292,1770222642489,-1045.87,0.0001229,2]
[404498293,1770222642498,-1045.87,0.00012313,2]
[404498294,1770222642510,-1045.87,0.00012335,2]
[404498295,1770222642519,-1045.87,0.00012357,2]
[404498296,1770222642529,-1045.87,0.0001238,2]
[404498297,1770222642538,-1045.87,0.00012402,2]
[404498298,1770222642547,-1045.87,0.00012424,2]
[404498299,1770222642557,-154.71,0.00012431,2]
[404498300,1770222642567,-1045.87,0.00012447,2]
[404498301,1770222642576,-1045.87,0.00012469,2]
[404498302,1770222642585,-1045.87,0.00012491,2]
[404498304,1770222642595,-2942.42397752,0.00012493,2]
[404498305,1770222642604,-1045.87,0.00012514,2]
[404498306,1770222642615,-500.0,0.00012533,2]
[404498307,1770222642624,-1045.87,0.00012536,2]
[404498308,1770222642634,-1045.87,0.00012558,2]
[404498309,1770222642643,-2310.57543165,0.0001267,2]
[404498310,1770222642655,-2310.57543165,0.0001267,2]
[404498311,1770222642665,-773.0228727,0.0001269,2]
[404498312,1770222642675,-735.39761899,0.00012701,2]
[404498313,1770222642684,-154.71,0.00012705,2]
[404498314,1770222642694,-433.0,0.00012724,2]
[404498315,1770222642704,-2942.42397752,0.00012737,2]
[404498316,1770222642713,-211.18,0.00012774,2]
[404498317,1770222642723,-151.0,0.00012979,2]
[404498318,1770222642733,-154.71,0.00012979,2]
[404498319,1770222642742,-2942.42397752,0.00012981,2]
[404498320,1770222642753,-10832.80625059,0.00012982,2]
[404498321,1770222642763,-500.0,0.00013081,2]
[404498322,1770222642772,-87961.7523493,0.0001315,2]
[404498323,1770222642782,-2184.17924842,0.00013196,2]
[404498324,1770222642791,-154.71,0.00013253,2]
[404498325,1770222642800,-211.18,0.00013329,2]
[404498326,1770222643005,-1000.0,0.00013393,2]
[404498327,1770222643015,-770.57,0.00013393,2]
[404498328,1770222643024,-485.31,0.00013393,2]
[404498329,1770222643033,-3240.0,0.00013425,2]
[404498330,1770222643042,-3292.0,0.00013469,2]
[404498331,1770222643052,-14657.1678,0.00013482,2]
[404498332,1770222643063,-154.71,0.00013527,2]
[404498333,1770222643073,-19626.9198886,0.00013593,2]
[404498334,1770222643083,-151.0,0.00013593,2]
[404498335,1770222643093,-394.52,0.00013606,2]
[404498336,1770222643103,-3225.662614,0.00013624,2]
[404498337,1770222643112,-500.0,0.00013629,2]
[404498338,1770222643122,-600.0,0.00013648,2]
[404498339,1770222643132,-500.0,0.00013698,2]
[404498340,1770222643142,-500.0,0.00013698,2]
[404498341,1770222643152,-500.0,0.00013698,2]
[404498342,1770222643162,-500.0,0.00013698,2]
[404498343,1770222643171,-502.87563044,0.00013698,2]
[404498344,1770222643181,-500.0,0.00013698,2]
[404498345,1770222643191,-503.69401691,0.00013698,2]
[404498346,1770222643200,-500.0,0.00013698,2]
[404498347,1770222643210,-500.0,0.00013698,2]
[404498348,1770222643220,-508.76475804,0.00013698,2]
[404498349,1770222643229,-500.0,0.00013698,2]
[404498350,1770222643238,-500.0,0.00013698,2]
[404498351,1770222643250,-500.0,0.00013698,2]
[404498352,1770222643261,-500.0,0.00013698,2]
[404498353,1770222643270,-500.0,0.00013698,2]
[404498354,1770222643280,-500.0,0.00013698,2]
[404498355,1770222643289,-500.0,0.00013698,2]
[404498356,1770222643299,-500.0,0.00013698,2]
[404498357,1770222643308,-500.0,0.00013698,2]
[404498358,1770222643318,-523.26417397,0.00013698,2]
[404498359,1770222643328,-504.11677041,0.00013698,2]
[404498360,1770222643339,-500.0,0.00013698,2]
[404498361,1770222643348,-500.0,0.00013698,2]
[404498362,1770222643358,-500.0,0.00013698,2]
[404498363,1770222643368,-500.0,0.00013698,2]
[404498364,1770222643378,-500.0,0.00013698,2]
[404498365,1770222643389,-500.0,0.00013698,2]
[404498366,1770222643398,-500.0,0.00013698,2]
[404498367,1770222643407,-500.0,0.00013698,2]
[404498368,1770222643417,-500.0,0.00013698,2]
[404498369,1770222643426,-500.0,0.00013698,2]
[404498370,1770222643435,-500.0,0.00013698,2]
[404498371,1770222643444,-500.0,0.00013698,2]
[404498372,1770222643454,-500.0,0.00013698,2]
[404498373,1770222643463,-500.0,0.00013698,2]
[404498374,1770222643472,-500.0,0.00013698,2]
[404498375,1770222643480,-500.0,0.00013698,3]
[404498376,1770222643489,-500.0,0.00013698,4]
[404498377,1770222643498,-500.0,0.00013698,5]
[404498378,1770222643510,-500.0,0.00013698,6]
[404498379,1770222643519,-500.0,0.00013698,2]
[404498380,1770222643528,-500.0,0.00013698,2]
[404498381,1770222643537,-500.0,0.00013698,2]
[404498382,1770222643547,-587.5541255,0.00013698,2]
[404498383,1770222643557,-500.0,0.00013698,2]
[404498384,1770222643567,-500.0,0.00013698,2]
[404498385,1770222643577,-500.0,0.00013698,2]
[404498386,1770222643589,-500.0,0.00013698,2]
[404498387,1770222643599,-500.0,0.00013698,2]
[404498388,1770222643608,-507.56417241,0.00013698,2]
[404498389,1770222643618,-500.0,0.00013698,2]
[404498390,1770222643629,-500.0,0.00013698,2]
[404498391,1770222643645,-500.0,0.00013698,2]
[404498392,1770222643657,-500.0,0.00013698,2]
[404498393,1770222643666,-500.0,0.00013698,2]
[404498394,1770222643675,-500.0,0.00013698,2]
[404498395,1770222643685,-500.0,0.00013698,2]
[404498396,1770222643695,-477.29936804,0.00013698,2]
[404498397,1770222643704,-384.73810332,0.00013698,2]
[404498398,1770222643713,-500.0,0.00013698,2]
[404498399,1770222643722,-500.0,0.00013698,2]
[404498400,1770222643732,-500.0,0.00013698,2]
[404498401,1770222643742,-500.0,0.00013698,2]
[404498402,1770222643754,-500.0,0.00013698,2]
[404498403,1770222643763,-500.0,0.00013698,2]
[404498404,1770222643772,-166.98,0.00013698,2]
[404498405,1770222643782,-500.0,0.00013698,2]
[404498406,1770222643792,-500.0,0.00013698,2]
[404498407,1770222643803,-500.0,0.00013698,2]
[404498408,1770222643813,-500.0,0.00013698,2]
[404498409,1770222643822,-500.0,0.00013698,2]
[404498410,1770222643832,-500.0,0.00013698,2]
[404498411,1770222643841,-500.0,0.00013698,2]
[404498412,1770222643850,-353.03533501,0.00013698,2]
[404498413,1770222643859,-500.0,0.00013698,2]
[404498414,1770222643869,-500.0,0.00013698,2]
[404498415,1770222643879,-500.0,0.00013698,2]
[404498416,1770222643889,-500.0,0.00013698,2]
[404498417,1770222643899,-500.0,0.00013698,2]
[404498418,1770222643909,-499.73386374,0.00013698,2]
[404498419,1770222643919,-889.549055,0.00013698,2]
[404498420,1770222643928,-889.549055,0.00013698,2]
[404498421,1770222643939,-889.549055,0.00013698,2]
[404498422,1770222643948,-889.549055,0.00013698,2]
[404498423,1770222643958,-500.0,0.00013698,2]
[404498424,1770222643967,-500.0,0.00013698,2]
[404498425,1770222643980,-500.0,0.00013698,2]
[404498426,1770222643995,-500.0,0.00013698,2]
[404498427,1770222644007,-500.0,0.00013698,2]
[404498428,1770222644016,-500.0,0.00013698,2]
[404498429,1770222644025,-326.5559361,0.00013698,2]
[404498430,1770222644034,-307.02,0.00013699,2]
[404498431,1770222644043,-200.0,0.00013699,2]
[404498432,1770222644052,-151.0,0.00013699,2]
[404498433,1770222644062,-151.0,0.00013699,2]
[404498434,1770222644071,-151.0,0.00013699,2]
[404498435,1770222644081,-151.0,0.00013699,2]
[404498436,1770222644090,-151.0,0.00013699,2]
[404498437,1770222644099,-151.0,0.00013699,2]
[404498438,1770222644109,-151.0,0.00013699,2]
[404498439,1770222644119,-151.0,0.00013699,2]
[404498440,1770222644128,-151.0,0.00013699,2]
[404498441,1770222644137,-151.0,0.00013699,2]
[404498442,1770222644147,-510.52,0.00013699,2]
[404498443,1770222644156,-3516.7961489,0.00013712,2]
[404498444,1770222644165,-2310.57543165,0.00013716,2]
[404498445,1770222644175,-154.71,0.00013801,2]
[404498446,1770222644185,-151.0,0.00013835,2]
[404498447,1770222644195,-151.0,0.00013835,2]
[404498448,1770222644204,-151.0,0.00013835,2]
[404498449,1770222644213,-151.0,0.00013835,2]
[404498450,1770222644223,-151.0,0.00013835,2]
[404498451,1770222644233,-151.0,0.00013835,2]
[404498452,1770222644242,-601.422256,0.00013835,2]
[404498453,1770222644253,-601.422256,0.00013835,2]
[404498454,1770222644262,-601.422256,0.00013835,2]
[404498455,1770222644271,-601.422256,0.00013835,2]
[404498456,1770222644281,-211.18,0.00013885,2]
[404498457,1770222644291,-656.61847621,0.00013889,2]
[404498458,1770222644300,-736.0,0.00013962,2]
[404498459,1770222644309,-154.71,0.00014075,2]
[404498460,1770222644318,-719.7426156,0.00014173,2]
[404498461,1770222644327,-602.95461322,0.00014177,2]
[404498462,1770222644336,-869.18,0.00014189,2]
[404498463,1770222644347,-301.44477492,0.00014239,2]
[404498464,1770222644356,-4391.61163896,0.00014239,2]
[404498465,1770222644366,-784.7032879,0.00014281,2]
[404498466,1770222644376,-418.0,0.00014335,2]
[404498467,1770222644387,-154.71,0.00014349,2]
[404498468,1770222644399,-356.41,0.00014364,2]
[404498471,1770222644410,-2184.17924842,0.00014372,2]
[404498474,1770222644419,-307.02,0.00014384,2]
[404498477,1770222644429,-151.0,0.00014384,2]
[404498479,1770222644439,-773.56,0.00014384,2]
[404498481,1770222644448,-2000.0,0.000144,2]
[404498482,1770222644457,-735.39761899,0.00014434,2]
[404498484,1770222644467,-211.18,0.0001444,2]
[404498485,1770222644476,-869.18,0.00014463,2]
[404498486,1770222644486,-1000.0,0.00014546,2]
[404498487,1770222644503,-1600.0,0.00014564,2]
[404498489,1770222644513,-503.53079739,0.000146,2]
[404498492,1770222644522,-500.0,0.000146,2]
[404498494,1770222644531,-500.0,0.000146,2]
[404498495,1770222644540,-500.0,0.000146,2]
[404498496,1770222644549,-500.0,0.000146,2]
[404498497,1770222644558,-500.0,0.000146,2]
[404498498,1770222644567,-446.05272837,0.000146,2]
[404498499,1770222644576,-500.0,0.000146,2]
[404498500,1770222644585,-500.0,0.000146,2]
[404498501,1770222644596,-500.0,0.000146,2]
[404498502,1770222644605,-500.0,0.000146,2]
[404498503,1770222644614,-619.23689165,0.000146,2]
[404498504,1770222644625,-500.0,0.000146,2]
[404498505,1770222644634,-500.0,0.000146,2]
[404498506,1770222644643,-500.0,0.000146,2]
[404498507,1770222644653,-500.0,0.000146,2]
[404498508,1770222644664,-500.0,0.000146,2]
[404498509,1770222644674,-500.0,0.000146,2]
[404498510,1770222644683,-500.0,0.000146,2]
[404498511,1770222644695,-500.0,0.000146,2]
[404498512,1770222644704,-616.68206911,0.000146,2]
[404498513,1770222644714,-500.0,0.000146,2]
[404498514,1770222644723,-500.0,0.000146,2]
[404498515,1770222644732,-501.33584129,0.000146,2]
[404498516,1770222644744,-614.32879488,0.000146,2]
[404498517,1770222644755,-500.0,0.000146,2]
[404498518,1770222644764,-500.0,0.000146,2]
[404498519,1770222644773,-200.0,0.00014619,2]
[404498520,1770222644782,-151.0,0.00014622,2]
[404498521,1770222644791,-151.0,0.00014622,2]
[404498522,1770222644801,-151.0,0.00014622,2]
[404498523,1770222644810,-20747.0,0.00014622,2]
[404498524,1770222644820,-154.71,0.00014623,2]
[404498525,1770222644831,-297.68350066,0.00014634,2]
[404498526,1770222644842,-370.91655145,0.00014639,2]
[404498527,1770222644851,-160.0,0.00014653,2]
[404498528,1770222644861,-773.56,0.00014658,2]
[404498529,1770222644871,-367.27056125,0.00014683,2]
[404498530,1770222644882,-150.0,0.00014685,2]
[404498531,1770222644892,-150.0,0.00014685,2]
[404498532,1770222644902,-150.0,0.00014685,2]
[404498533,1770222644912,-150.0,0.00014685,2]
[404498534,1770222644923,-150.4373073,0.00014685,2]
[404498535,1770222644933,-150.0,0.00014685,2]
[404498536,1770222644942,-500.0,0.00014685,2]
[404498537,1770222644951,-500.0,0.00014685,2]
[404498538,1770222644961,-500.0,0.00014685,2]
[404498539,1770222644971,-500.0,0.00014685,2]
[404498540,1770222644981,-500.0,0.00014685,2]
[404498541,1770222644991,-500.0,0.00014685,2]
[404498542,1770222645000,-150.0,0.00014685,2]
[404498543,1770222645011,-500.0,0.00014685,2]
[404498544,1770222645021,-150.0,0.00014685,2]
[404498545,1770222645030,-166.17842172,0.00014685,2]
[404498546,1770222645039,-150.0,0.00014685,2]
[404498547,1770222645049,-150.0,0.00014685,2]
[404498548,1770222645058,-4281.0,0.00014685,2]
[404498549,1770222645068,-150.0,0.00014685,2]
[404498550,1770222645077,-150.0,0.00014685,2]
[404498551,1770222645087,-150.0,0.00014685,2]
[404498552,1770222645097,-500.0,0.00014685,2]
[404498553,1770222645107,-150.0,0.00014685,2]
[404498554,1770222645116,-150.0,0.00014685,2]
[404498555,1770222645126,-150.0,0.00014685,2]
[404498556,1770222645136,-902.0,0.00014685,2]
[404498557,1770222645146,-150.0,0.00014685,2]
[404498558,1770222645155,-150.0,0.00014685,2]
[404498559,1770222645165,-150.0,0.00014685,2]
[404498560,1770222645174,-150.0,0.00014685,2]
[404498561,1770222645183,-150.0,0.00014685,2]
[404498562,1770222645193,-2000.0,0.000147,2]
[404498563,1770222645202,-345.0,0.00014701,2]
[404498564,1770222645212,-394.52,0.00014721,2]
[404498565,1770222645221,-869.18,0.00014737,2]
[404498566,1770222645230,-150.0,0.0001474,2]
[404498567,1770222645239,-150.0,0.0001474,2]
[404498568,1770222645248,-150.0,0.0001474,2]
[404498569,1770222645261,-150.0,0.0001474,2]
[404498570,1770222645271,-500.0,0.0001474,2]
[404498571,1770222645280,-500.0,0.0001474,2]
[404498572,1770222645290,-500.0,0.0001474,2]
[404498573,1770222645299,-500.0,0.0001474,2]
[404498574,1770222645309,-500.0,0.0001474,2]
[404498575,1770222645318,-500.0,0.0001474,2]
[404498576,1770222645328,-150.0,0.0001474,2]
[404498577,1770222645337,-500.0,0.0001474,2]
[404498578,1770222645347,-150.0,0.0001474,2]
[404498579,1770222645356,-4281.0,0.0001474,2]
[404498580,1770222645368,-150.0,0.0001474,2]
[404498581,1770222645379,-200.0,0.0001474,2]
[404498582,1770222645389,-500.0,0.0001474,2]
[404498583,1770222645399,-150.0,0.0001474,2]
[404498584,1770222645409,-150.0,0.0001474,2]
[404498585,1770222645419,-902.0,0.0001474,2]
[404498586,1770222645428,-150.0,0.0001474,2]
[404498587,1770222645437,-381.0,0.00014761,2]
[404498588,1770222645447,-418.0,0.00014762,2]
[404498589,1770222645456,-404.0,0.00014769,2]
[404498590,1770222645465,-600.0,0.00014783,2]
[404498591,1770222645475,-382.0,0.00014784,2]
[404498592,1770222645484,-404.0,0.00014787,2]
[404498593,1770222645493,-150.0,0.00014795,2]
[404498594,1770222645503,-200.0,0.00014795,2]
[404498595,1770222645512,-200.0,0.00014795,2]
[404498596,1770222645522,-150.0,0.00014795,2]
[404498597,1770222645531,-500.0,0.00014795,2]
[404498598,1770222645540,-569.21162373,0.00014795,2]
[404498599,1770222645550,-500.0,0.00014795,2]
[404498600,1770222645560,-150.0,0.00014795,2]
[404498601,1770222645569,-500.0,0.00014795,2]
[404498602,1770222645579,-548.08731584,0.00014795,2]
[404498603,1770222645588,-150.0,0.00014795,2]
[404498604,1770222645598,-150.0,0.00014795,2]
[404498605,1770222645607,-4281.0,0.00014795,2]
[404498606,1770222645616,-200.0,0.00014795,2]
[404498607,1770222645626,-500.0,0.00014795,2]
[404498608,1770222645636,-150.0,0.00014795,2]
[404498609,1770222645646,-150.0,0.00014795,2]
[404498610,1770222645659,-902.0,0.00014795,2]
[404498611,1770222645668,-200.0,0.00014795,2]
[404498612,1770222645678,-372.0,0.00014798,2]
[404498613,1770222645688,-4609.0,0.00014816,2]
[404498614,1770222645700,-382.0,0.00014819,2]
[404498615,1770222645709,-404.0,0.00014827,2]
[404498616,1770222645719,-666.0,0.00014849,2]
[404498617,1770222645730,-200.0,0.00014849,2]
[404498618,1770222645741,-179.32668848,0.00014849,2]
[404498619,1770222645752,-500.0,0.00014849,2]
[404498620,1770222645767,-500.0,0.00014849,2]
[404498621,1770222645777,-500.0,0.00014849,2]
[404498622,1770222645787,-166.05277609,0.00014849,2]
[404498623,1770222645797,-4281.0,0.00014849,2]
[404498624,1770222645807,-500.0,0.00014849,2]
[404498625,1770222645817,-188.49638656,0.00014849,2]
[404498626,1770222645827,-150.0,0.00014849,2]
[404498627,1770222645837,-902.0,0.00014849,2]
[404498628,1770222645847,-2000.0,0.0001487,2]
[404498629,1770222645857,-418.0,0.00014883,2]
[404498630,1770222645866,-154.71,0.00014897,2]
[404498631,1770222645875,-1000.0,0.000149,2]
[404498632,1770222645885,-500.0,0.00014904,2]
[404498633,1770222645895,-500.0,0.00014904,2]
[404498634,1770222645905,-500.0,0.00014904,2]
[404498635,1770222645914,-4281.0,0.00014904,2]
[404498636,1770222645924,-500.0,0.00014904,2]
[404498637,1770222645934,-267.32195471,0.00014904,2]
[404498638,1770222645944,-902.0,0.00014904,2]
[404498639,1770222645954,-2000.0,0.0001492,2]
[404498640,1770222645963,-404.0,0.00014923,2]
[404498641,1770222645972,-382.0,0.0001493,2]
[404498642,1770222645983,-381.72,0.00014932,2]
[404498643,1770222645993,-404.0,0.00014941,2]
[404498644,1770222646004,-404.0,0.00014942,2]
[404498646,1770222646015,-382.0,0.00014958,2]
[404498647,1770222646025,-500.0,0.00014959,2]
[404498648,1770222646034,-359.16308256,0.00014959,2]
[404498649,1770222646044,-500.0,0.00014959,2]
[404498650,1770222646054,-4281.0,0.00014959,2]
[404498651,1770222646064,-418.13955353,0.00014959,2]
[404498652,1770222646074,-902.0,0.00014959,2]
[404498653,1770222646084,-418.0,0.00014962,2]
[404498654,1770222646095,-2000.0,0.0001497,2]
[404498663,1770222646279,-190.19236445,0.00014975,2]
[404498664,1770222646289,-500.0,0.00014985,2]
[404498665,1770222646299,-500.0,0.00014985,2]
[404498666,1770222646309,-418.0,0.00014988,2]
[404498668,1770222646320,-211.18,0.00014996,2]
[404498670,1770222646330,-161.21910117,0.00014997,2]
[404498671,1770222646339,-2000.0,0.00014999,2]
[404498672,1770222646349,-2000.0,0.00014999,2]
[404498673,1770222646358,-666.0,0.00014999,2]
[404498674,1770222646367,-132719.97656721,0.00015,3]
[404498676,1770222646377,-250.0,0.00015,2]
[404498678,1770222646386,-151.0,0.00015,2]
[404498680,1770222646396,-2000.0,0.00015,2]
[404498683,1770222646407,-7103.00628422,0.00015,3]
[404498686,1770222646416,-889.549055,0.00015,2]
[404498689,1770222646426,-889.549055,0.00015,2]
[404498692,1770222646436,-152.38,0.00015,2]
[404498695,1770222646446,-152.38,0.00015,2]
[404498699,1770222646457,-152.38,0.00015,2]
[404498702,1770222646467,-152.38,0.00015,2]
[404498705,1770222646477,-889.549055,0.00015,2]
[404498707,1770222646487,-152.38,0.00015,2]
[404498709,1770222646497,-152.38,0.00015,2]
[404498711,1770222646516,-152.38,0.00015,2]
[404498713,1770222646526,-152.38,0.00015,2]
[404498716,1770222646547,-152.38,0.00015,2]
[404498718,1770222646557,-152.38,0.00015,2]
[404498720,1770222646567,-152.38,0.00015,2]
[404498722,1770222646577,-152.38,0.00015,2]
[404498724,1770222646587,-152.38,0.00015,2]
[404498726,1770222646597,-152.38,0.00015,2]
[404498728,1770222646607,-152.38,0.00015,2]
[404498730,1770222646616,-152.38,0.00015,2]
[404498732,1770222646626,-152.38,0.00015,2]
[404498733,1770222646635,-152.38,0.00015,2]
[404498734,1770222646645,-152.38,0.00015,2]
[404498735,1770222646655,-889.549055,0.00015,2]
[404498737,1770222646668,-152.38,0.00015,2]
[404498739,1770222646678,-152.38,0.00015,2]
[404498741,1770222646687,-152.38,0.00015,2]
[404498743,1770222646696,-152.38,0.00015,2]
[404498745,1770222646708,-152.38,0.00015,2]
[404498747,1770222646717,-152.38,0.00015,2]
[404498749,1770222646727,-152.38,0.00015,2]
[404498751,1770222646738,-152.38,0.00015,2]
[404498753,1770222646747,-152.38,0.00015,2]
[404498755,1770222646761,-152.38,0.00015,2]
[404498757,1770222646771,-152.38,0.00015,2]
[404498759,1770222646781,-152.38,0.00015,2]
[404498761,1770222646790,-152.38,0.00015,2]
[404498763,1770222646800,-152.38,0.00015,2]
[404498765,1770222646810,-152.38,0.00015,2]
[404498766,1770222646820,-152.38,0.00015,2]
[404498767,1770222646830,-152.38,0.00015,2]
[404498768,1770222646840,-152.38,0.00015,2]
[404498769,1770222646852,-152.38,0.00015,2]
[404498770,1770222646862,-152.38,0.00015,2]
[404498771,1770222646872,-152.38,0.00015,2]
[404498772,1770222646883,-152.38,0.00015,2]
[404498773,1770222646893,-152.38,0.00015,2]
[404498774,1770222646903,-152.38,0.00015,2]
[404498775,1770222646912,-233.59,0.00015011,2]
[404498776,1770222646922,-4281.0,0.00015014,2]
[404498777,1770222646932,-902.0,0.00015014,2]
[404498778,1770222646942,-339.86950533,0.00015015,2]
[404498779,1770222646951,-2000.0,0.0001502,2]
[404498780,1770222646961,-1000.0,0.00015068,2]
[404498781,1770222646971,-151.0,0.00015068,2]
[404498783,1770222646981,-151.0,0.00015068,2]
[404498784,1770222646990,-151.0,0.00015068,2]
[404498786,1770222646999,-151.0,0.00015068,2]
[404498787,1770222647013,-151.0,0.00015068,2]
[404498788,1770222647025,-235.921672,0.00015068,2]
[404498789,1770222647034,-601.422256,0.00015068,2]
[404498790,1770222647044,-601.422256,0.00015068,2]
[404498791,1770222647054,-601.422256,0.00015068,2]
[404498792,1770222647064,-601.422256,0.00015068,2]
[404498793,1770222647074,-450.0,0.00015068,2]
[404498794,1770222647084,-307.02,0.00015068,2]
[404498795,1770222647093,-678.254441,0.00015068,2]
[404498796,1770222647103,-678.254441,0.00015068,2]
[404498797,1770222647113,-678.254441,0.00015068,2]
[404498798,1770222647123,-678.254441,0.00015068,2]
[404498799,1770222647132,-678.254441,0.00015068,2]
[404498800,1770222647142,-678.254441,0.00015068,2]
[404498801,1770222647152,-678.254441,0.00015068,2]
[404498802,1770222647161,-678.254441,0.00015068,2]
[404498803,1770222647171,-678.254441,0.00015068,2]
[404498804,1770222647181,-678.254441,0.00015068,2]
[404498805,1770222647191,-678.254441,0.00015068,2]
[404498806,1770222647200,-678.254441,0.00015068,2]
[404498807,1770222647210,-4281.0,0.00015069,2]
[404498808,1770222647221,-902.0,0.00015069,2]
[404498809,1770222647230,-4281.0,0.00015123,2]
[404498810,1770222647240,-902.0,0.00015123,2]
[404498811,1770222647250,-1000.0,0.00015148,2]
[404498812,1770222647262,-1000.0,0.00015148,2]
[404498813,1770222647271,-1000.0,0.00015148,2]
[404498814,1770222647281,-1000.0,0.00015148,2]
[404498815,1770222647291,-1000.0,0.00015148,2]
[404498816,1770222647300,-1000.0,0.00015148,2]
[404498817,1770222647310,-1000.0,0.00015148,2]
[404498818,1770222647320,-1000.0,0.00015148,2]
[404498819,1770222647330,-1005.05936484,0.00015148,2]
[404498820,1770222647340,-1074.23696908,0.00015148,2]
[404498821,1770222647349,-1000.0,0.00015148,2]
[404498822,1770222647359,-1000.0,0.00015148,2]
[404498823,1770222647368,-1000.0,0.00015148,2]
[404498824,1770222647378,-510.7037772,0.00015148,2]
[404498825,1770222647388,-1000.0,0.00015148,2]
[404498826,1770222647397,-504.53493259,0.00015148,2]
[404498827,1770222647406,-908.34309823,0.00015148,2]
[404498828,1770222647415,-1000.0,0.00015148,2]
[404498829,1770222647424,-1000.0,0.00015148,2]
[404498830,1770222647434,-1000.0,0.00015148,2]
[404498832,1770222647444,-1000.0,0.00015148,2]
[404498834,1770222647453,-678.254441,0.00015148,2]
[404498836,1770222647462,-678.254441,0.00015148,2]
[404498838,1770222647472,-678.254441,0.00015148,2]
[404498841,1770222647482,-678.254441,0.00015148,2]
[404498843,1770222647496,-154.82,0.00015171,2]
[404498844,1770222647508,-4281.0,0.00015178,2]
[404498845,1770222647518,-902.0,0.00015178,2]
[404498846,1770222647528,-150.0,0.00015221,7]
[404498847,1770222647537,-261.648666,0.00015221,7]
[404498848,1770222647547,-373.297332,0.00015221,7]
[404498849,1770222647557,-484.945999,0.00015221,7]
[404498850,1770222647567,-596.594665,0.00015221,7]
[404498851,1770222647576,-708.243332,0.00015221,7]
[404498852,1770222647586,-819.891998,0.00015221,7]
[404498853,1770222647596,-931.540664,0.00015221,7]
[404498854,1770222647606,-1043.189331,0.00015221,7]
[404498855,1770222647616,-1154.837997,0.00015221,7]
[404498856,1770222647627,-4281.0,0.00015233,2]
[404498857,1770222647637,-902.0,0.00015233,2]
[404498858,1770222647646,-4281.0,0.00015288,2]
[404498859,1770222647659,-902.0,0.00015288,2]
[404498860,1770222647673,-3178.0,0.000153,2]
[404498861,1770222647683,-356.41,0.00015304,2]
[404498862,1770222647693,-1790.93,0.0001531,2]
[404498863,1770222647705,-701.0,0.00015316,2]
[404498864,1770222647715,-150.0,0.00015318,7]
[404498865,1770222647725,-160.791843,0.00015318,7]
[404498866,1770222647735,-171.583686,0.00015318,7]
[404498867,1770222647746,-182.375529,0.00015318,7]
[404498868,1770222647757,-193.167372,0.00015318,7]
[404498869,1770222647766,-203.959215,0.00015318,7]
[404498870,1770222647776,-214.751058,0.00015318,7]
[404498871,1770222647785,-225.542901,0.00015318,7]
[404498872,1770222647795,-236.334744,0.00015318,7]
[404498873,1770222647804,-247.126587,0.00015318,7]